{"text_format":"1","workbook":"xlsx","n_sheets":3,"sheets":["自己評価書作成メニュー","自己評価書","マスターシート"],"not_rendered":{"charts":0,"images":2,"macros":1,"external_links":0,"defined_names":248,"comments":1,"pivot_tables":0},"unopened":[],"bounds":{"document_bytes":16777216,"sheet_cells":100000,"rows_first":2000,"rows_last":500,"rows_between":2000,"halvings":0,"cell_chars":16384,"cell_head_chars":4096},"cells_cut":0,"cells_raw":0,"read":"whole","date_system":"1900"}

{"sheet":"自己評価書作成メニュー","index":0,"n_rows":14,"n_cols":7,"rows_kept":14,"cut":false,"hidden":false,"merged":[]}
[]
[]
[]
[]
[]
[null,null,null,null,null,null,"住宅性能評価 自己評価書 読込用ファイル"]
[]
[null,null,null,null,null,null,"マクロを有効にしてご利用下さい。"]
[]
[]
[]
[]
[]
[null,null,null,null,null,null,"評価する住宅の種類のボタンをクリックして下さい。"]

{"sheet":"自己評価書","index":1,"n_rows":35,"n_cols":242,"rows_kept":35,"cut":false,"hidden":true,"merged":[[18,137,18,141],[17,113,17,141],[1,7,1,43],[28,216,32,216],[28,217,32,217],[28,218,32,218],[18,126,18,136],[19,219,32,219],[29,213,32,213],[29,214,32,214],[19,215,19,218],[20,215,20,216],[20,217,20,218],[21,215,27,215],[21,216,27,216],[21,217,27,217],[21,218,27,218],[28,215,32,215],[19,210,32,210],[19,211,19,214],[20,211,20,212],[20,213,20,214],[21,211,28,211],[21,212,28,212],[18,113,18,124],[29,141,32,141],[29,139,32,139],[20,137,28,137],[28,135,32,135],[19,155,19,157],[20,61,20,65],[21,207,27,207],[21,208,27,208],[28,206,32,206],[19,201,32,201],[19,149,19,150],[20,149,32,150],[19,202,19,205],[20,202,20,203],[20,204,20,205],[21,202,28,202],[21,203,28,203],[19,162,19,163],[19,158,19,159],[19,160,19,161],[19,200,32,200],[20,158,32,159],[20,160,32,161],[21,129,28,129],[21,133,27,133],[20,138,28,138],[29,130,32,130],[29,132,32,132],[20,135,20,136],[20,129,20,130],[21,134,27,134],[21,131,28,131],[6,107,6,109],[7,107,7,109],[17,107,17,112],[13,39,13,47],[17,46,17,67],[6,58,6,66],[7,57,7,66],[8,58,8,66],[9,57,9,66],[10,57,10,65],[11,57,11,65],[7,93,7,94],[7,17,7,18],[8,17,8,18],[9,17,9,18],[10,17,10,18],[6,27,6,29],[7,27,7,29],[8,27,8,29],[9,27,9,29],[10,27,10,29],[6,17,6,18],[34,9,34,10],[34,11,34,12],[33,13,33,14],[34,13,34,14],[33,15,33,16],[34,15,34,16],[19,103,19,106],[19,112,28,112],[20,100,32,100],[20,87,32,87],[19,108,28,108],[19,110,28,110],[33,76,33,77],[33,64,33,65],[20,101,32,101],[20,102,32,102],[20,103,32,103],[20,106,32,106],[19,66,32,67],[20,48,32,48],[21,64,32,65],[20,58,32,58],[20,104,32,104],[29,107,32,107],[18,155,18,165],[20,97,32,97],[20,95,32,95],[29,112,32,112],[20,99,32,99],[20,98,32,98],[19,109,28,109],[28,123,32,123],[34,21,34,23],[20,57,32,57],[20,43,32,44],[29,25,32,25],[19,47,32,47],[21,52,32,54],[34,43,34,44],[34,61,34,63],[33,149,33,150],[34,149,34,150],[18,144,18,154],[20,139,28,139],[20,131,20,132],[34,113,34,116],[34,125,34,128],[29,140,32,140],[1,5,1,6],[19,188,32,188],[19,189,32,189],[18,108,18,112],[18,90,18,106],[17,144,17,165],[17,142,17,143],[17,18,32,18],[17,19,32,19],[17,20,32,20],[17,21,32,23],[18,85,18,89],[20,141,28,141],[29,138,32,138],[18,80,18,84],[19,113,32,116],[20,82,30,84],[31,82,32,84],[19,74,19,79],[19,68,32,71],[29,81,32,81],[29,73,32,73],[29,80,32,80],[19,125,32,128],[19,191,32,191],[21,209,27,209],[20,162,32,163],[19,195,32,195],[19,199,32,199],[20,175,32,176],[19,220,32,220],[21,213,28,213],[21,214,28,214],[29,211,32,211],[29,212,32,212],[28,207,32,207],[28,209,32,209],[19,223,32,223],[19,222,32,222],[21,238,21,239],[22,238,22,239],[23,238,23,239],[24,238,24,239],[25,238,25,239],[26,238,26,239],[19,196,32,196],[27,241,27,242],[33,158,33,159],[33,160,33,161],[33,162,33,163],[33,164,33,165],[19,142,28,142],[19,143,28,143],[20,153,32,154],[19,153,19,154],[19,164,19,165],[21,241,21,242],[22,241,22,242],[23,241,23,242],[24,241,24,242],[25,241,25,242],[26,241,26,242],[27,238,27,239],[20,151,32,152],[20,146,32,146],[20,145,32,145],[19,147,19,148],[33,151,33,152],[33,153,33,154],[19,221,32,221],[33,5,33,6],[33,7,33,8],[33,59,33,60],[33,55,33,56],[33,113,33,116],[33,66,33,67],[33,9,33,10],[33,11,33,12],[33,21,33,23],[19,24,28,24],[19,38,32,38],[19,99,19,102],[33,125,33,128],[33,78,33,79],[33,43,33,44],[33,50,33,51],[33,52,33,54],[33,27,33,31],[33,32,33,34],[33,68,33,71],[19,95,19,98],[19,85,19,87],[28,124,32,124],[20,76,30,77],[19,72,28,73],[29,74,32,74],[19,80,19,84],[20,119,20,120],[20,92,32,94],[21,123,27,123],[20,123,20,124],[19,117,19,120],[19,121,19,124],[34,151,34,152],[34,147,34,148],[29,202,32,202],[29,203,32,203],[29,204,32,204],[29,205,32,205],[21,204,28,204],[21,205,28,205],[20,157,32,157],[19,197,32,197],[19,198,32,198],[20,164,32,165],[20,155,32,155],[20,156,32,156],[19,151,19,152],[20,147,32,148],[19,193,32,193],[19,194,32,194],[19,192,32,192],[19,190,32,190],[33,147,33,148],[34,164,34,165],[33,175,33,176],[33,180,33,181],[19,225,32,225],[19,226,32,226],[19,227,32,227],[34,160,34,161],[34,162,34,163],[34,158,34,159],[34,153,34,154],[19,206,19,209],[20,206,20,207],[20,208,20,209],[19,224,32,224],[28,208,32,208],[21,206,27,206],[34,169,34,170],[34,171,34,172],[34,173,34,174],[34,175,34,176],[34,180,34,181],[34,182,34,183],[34,184,34,185],[34,186,34,187],[33,169,33,170],[33,171,33,172],[33,173,33,174],[34,1,34,2],[34,3,34,4],[34,5,34,6],[33,1,33,2],[34,7,34,8],[33,92,33,94],[34,27,34,31],[34,32,34,34],[34,64,34,65],[34,68,34,71],[34,52,34,54],[34,92,34,94],[34,40,34,41],[34,50,34,51],[34,59,34,60],[34,66,34,67],[33,40,33,41],[34,82,34,84],[34,76,34,77],[34,78,34,79],[34,55,34,56],[33,61,33,63],[33,82,33,84],[33,3,33,4],[9,33,9,38],[6,40,6,45],[8,40,8,45],[7,40,7,47],[6,89,6,91],[7,89,7,91],[9,89,9,91],[17,85,17,106],[6,75,6,76],[17,74,17,84],[7,34,7,38],[9,40,9,45],[10,40,10,45],[5,32,5,33],[19,57,19,65],[8,50,8,51],[5,50,5,51],[20,96,32,96],[20,91,32,91],[19,107,28,107],[19,90,19,94],[20,105,32,105],[6,93,6,94],[29,75,32,75],[20,78,30,79],[29,89,32,89],[20,88,28,88],[11,39,12,47],[19,88,19,89],[29,88,32,88],[6,50,6,51],[6,55,6,56],[10,33,10,38],[7,75,7,76],[29,46,32,46],[19,46,28,46],[21,55,32,56],[17,0,32,0],[17,3,32,4],[17,5,32,6],[17,7,32,8],[17,1,32,2],[19,45,28,45],[19,26,32,26],[29,35,32,35],[19,37,32,37],[19,36,32,36],[20,40,32,41],[17,9,32,10],[17,11,32,12],[17,13,32,14],[17,15,32,16],[19,32,32,34],[19,35,28,35],[19,27,32,31],[17,17,32,17],[29,24,32,24],[19,25,28,25],[29,45,32,45],[19,42,32,42],[19,39,32,39],[18,74,18,79],[18,47,18,67],[21,61,32,63],[20,59,32,60],[31,76,32,77],[20,49,32,49],[20,50,32,51],[20,52,20,56],[29,72,32,72],[19,48,19,56],[31,78,32,79],[19,186,19,187],[19,175,19,176],[19,177,19,179],[19,180,19,181],[20,166,32,166],[29,110,32,110],[29,111,32,111],[21,119,28,119],[21,120,28,120],[19,111,28,111],[29,117,32,117],[21,117,28,117],[21,118,28,118],[29,119,32,119],[29,120,32,120],[20,117,20,118],[20,121,20,122],[28,121,32,121],[21,121,27,121],[29,143,32,143],[29,142,32,142],[20,140,28,140],[28,134,32,134],[28,133,32,133],[20,90,32,90],[20,89,28,89],[20,86,32,86],[20,85,32,85],[21,135,27,135],[19,138,19,141],[21,124,27,124],[21,130,28,130],[19,144,19,146],[20,144,32,144],[29,108,32,108],[29,109,32,109],[29,118,32,118],[28,122,32,122],[28,136,32,136],[29,137,32,137],[19,133,19,136],[21,122,27,122],[20,133,20,134],[21,136,27,136],[21,132,28,132],[19,129,19,132],[29,129,32,129],[29,131,32,131],[33,182,33,183],[33,184,33,185],[33,186,33,187],[20,177,32,177],[20,184,32,185],[17,166,17,187],[18,166,18,176],[18,177,18,187],[19,166,19,168],[19,169,19,170],[19,171,19,172],[19,173,19,174],[20,167,32,167],[20,168,32,168],[20,169,32,170],[20,171,32,172],[20,173,32,174],[20,180,32,181],[20,178,32,178],[20,179,32,179],[20,182,32,183],[19,182,19,183],[19,184,19,185],[20,186,32,187]]}
[]
[null,null,null,null,null,"件名："]
[]
["（住棟部分）"]
[]
[null,null,null,null,null,null,null,null,null,null,null,null,null,null,null,null,null,"１構造の安定",null,null,null,null,null,null,null,null,null,null,null,null,null,null,"1-6.",null,"地盤又は杭の許容支持力等及びその設定方法",null,null,null,null,null,null,null,null,null,null,null,null,null,null,null,"1-7.",null,"基礎の構造方法及び形式等",null,null,null,null,null,null,null,null,null,null,null,null,null,null,null,null,null,null,null,null,null,null,2,"火災時の安全",null,null,null,null,null,null,null,null,null,null,null,null,null,null,null,null,4,"維持管理への配慮",null,null,null,null,null,null,null,null,null,null,null,null,null,null,null,null,null,null,null,null,null,null,null,null,null,null,null,null,null,null,null,null,null,null,null,null,null,null,null,null,null,null,null,null,null,null,null,null,null,null,null,null,null,null,null,null,null,null,null,null,null,null,null,null,null,null,null,null,null,null,null,null,null,null,null,null,null,null,null,null,null,null,null,null,null,null,null,null,null,null,null,null,null,null,null,null,null,null,null,null,null,null,null,null,null,null,null,null,null,null,null,null,null,null,null,null,null,null,null,null,null,null,null,null,null,null,null,null,null,null,null,null,null,null,null,null,null,null,null,null,null,null,"読込種類","読込判定に使用（1: 概要、2: 等級）",2]
[null,null,null,null,null,null,null,null,null,null,null,null,null,null,null,null,null,"1-1.",null,"耐震等級(倒壊等防止)",null,null,null,null,null,null,"[0-3]",null,null,null,null,null,null,"地盤の許容応力度",null,null,null,null,null,{"$f":"IF(AO7=\"\",\"□\",\"■\")","v":"□"},null,null,null,null,null,null,"kN/㎡",null,null,null,"a.",null,"直接基礎",null,null,"構造方法",null,{"$f":"IF(BG7=\"\",\"□\",\"■\")","v":"□"},null,null,null,null,null,null,null,null,null,null,null,null,null,null,null,null,null,"2-5.",null,null,"耐火等級(開口部)",null,null,null,null,null,null,null,null,null,"[0-3]",null,null,null,null,"4-2.",null,"維持管理対策等級(共用配管)",null,null,null,null,null,null,null,null,null,null,"[0-3]",null,null,null,null,null,null,null,null,null,null,null,null,null,null,null,null,null,null,null,null,null,null,null,null,null,null,null,null,null,null,null,null,null,null,null,null,null,null,null,null,null,null,null,null,null,null,null,null,null,null,null,null,null,null,null,null,null,null,null,null,null,null,null,null,null,null,null,null,null,null,null,null,null,null,null,null,null,null,null,null,null,null,null,null,null,null,null,null,null,null,null,null,null,null,null,null,null,null,null,null,null,null,null,null,null,null,null,null,null,null,null,null,null,null,null,null,null,null,null,null,null,null,null,null,null,null,null,null,null,null,"評価の種類","〃",1]
[null,null,null,null,null,null,null,null,null,null,null,null,null,null,null,null,null,"1-2.",null,"耐震等級(損傷防止)",null,null,null,null,null,null,"[0-3]",null,null,null,null,null,null,null,null,null,null,null,null,"□","地盤改良後の数値とする",null,null,null,null,null,null,null,null,null,null,null,null,null,null,"形式",null,null,null,null,null,null,null,null,null,null,null,null,null,null,null,null,null,null,null,"2-6.",null,null,"耐火等級(開口部以外)",null,null,null,null,null,null,null,null,null,"[0-4]",null,null,null,null,"4-3.",null,"更新対策等級(共用排水管)",null,null,null,null,null,null,null,null,null,null,"[0-3]",null,null,null,null,null,null,null,null,null,null,null,null,null,null,null,null,null,null,null,null,null,null,null,null,null,null,null,null,null,null,null,null,null,null,null,null,null,null,null,null,null,null,null,null,null,null,null,null,null,null,null,null,null,null,null,null,null,null,null,null,null,null,null,null,null,null,null,null,null,null,null,null,null,null,null,null,null,null,null,null,null,null,null,null,null,null,null,null,null,null,null,null,null,null,null,null,null,null,null,null,null,null,null,null,null,null,null,null,null,null,null,null,null,null,null,null,null,null,null,null,null,null,null,null,null,null,null,null,null,null,"住宅の種類","〃",1]
[null,null,null,null,null,null,null,null,null,null,null,null,null,null,null,null,null,"1-3.",null,"免震構造物",null,null,null,null,null,null,null,null,null,null,null,null,null,"杭の許容支持力",null,null,null,null,null,{"$f":"IF(AO9=\"\",\"□\",\"■\")","v":"□"},null,null,null,null,null,null,"kN/本",null,null,null,"b.",null,"杭基礎",null,null,"杭種",null,{"$f":"IF(BG9=\"\",\"□\",\"■\")","v":"□"},null,null,null,null,null,null,null,null,null,null,null,null,null,null,null,null,null,3,"劣化の軽減",null,null,null,null,null,null,null,null,null,null,null,null,null,null,null,null,null,null,"共用排水立管の位置",null,null,null,null,null,null,"共用廊下に面する共用部分",null,null,null,null,null,null,null,null,null,null,null,null,null,null,null,null,null,null,null,null,null,null,null,null,null,null,null,null,null,null,null,null,null,null,null,null,null,null,null,null,null,null,null,null,null,null,null,null,null,null,null,null,null,null,null,null,null,null,null,null,null,null,null,null,null,null,null,null,null,null,null,null,null,null,null,null,null,null,null,null,null,null,null,null,null,null,null,null,null,null,null,null,null,null,null,null,null,null,null,null,null,null,null,null,null,null,null,null,null,null,null,null,null,null,null,null,null,null,null,null,null,null,null,null,null,null,null,null,null,null,null,null,null,null,"1.3 免震構造物 免震建築物","読込データとして使用",{"$f":"IF(work_tower_N01_3=マスターシート!C4, \"○\", \"\")","v":""}]
[null,null,null,null,null,null,null,null,null,null,null,null,null,null,null,null,null,"1-4.",null,"耐風等級",null,null,null,null,null,null,"[1-2]",null,null,null,null,null,null,"杭状改良地盤の許容支持力度",null,null,null,null,null,{"$f":"IF(AO10=\"\",\"□\",\"■\")","v":"□"},null,null,null,null,null,null,"kN/㎡",null,null,null,null,null,null,null,null,"備考",null,null,null,null,null,null,null,null,null,null,null,null,null,null,null,null,null,null,null,null,null,"3-1.","劣化対策等級",null,null,null,null,null,null,null,null,null,"[1-3]",null,null,null,null,null,null,null,null,null,null,null,null,null,"外壁面、吹き抜け等の住戸外周部",null,null,null,null,null,null,null,null,null,null,null,null,null,null,null,null,null,null,null,null,null,null,null,null,null,null,null,null,null,null,null,null,null,null,null,null,null,null,null,null,null,null,null,null,null,null,null,null,null,null,null,null,null,null,null,null,null,null,null,null,null,null,null,null,null,null,null,null,null,null,null,null,null,null,null,null,null,null,null,null,null,null,null,null,null,null,null,null,null,null,null,null,null,null,null,null,null,null,null,null,null,null,null,null,null,null,null,null,null,null,null,null,null,null,null,null,null,null,null,null,null,null,null,null,null,null,null,null,null,null,null,null,null,null,"1.3 免震構造物 その他","〃",{"$f":"IF(work_tower_N01_3=マスターシート!C5, \"○\", \"\")","v":""}]
[null,null,null,null,null,null,null,null,null,null,null,null,null,null,null,null,null,"1-5.",null,"耐積雪等級",null,null,null,null,null,null,"[0-2]",null,null,null,null,null,null,"杭状改良地盤の許容支持力",null,null,null,null,null,{"$f":"IF(AO11=\"\",\"□\",\"■\")","v":"□"},null,null,null,null,null,null,"kN/本",null,null,null,null,null,null,null,null,"杭径",null,null,null,null,null,null,null,null,null,null,"cm",null,null,null,null,null,null,null,null,null,null,null,null,null,null,null,null,null,null,null,null,null,null,null,null,null,null,null,null,null,null,null,null,null,null,null,"バルコニー",null,null,null,null,null,null,null,null,null,null,null,null,null,null,null,null,null,null,null,null,null,null,null,null,null,null,null,null,null,null,null,null,null,null,null,null,null,null,null,null,null,null,null,null,null,null,null,null,null,null,null,null,null,null,null,null,null,null,null,null,null,null,null,null,null,null,null,null,null,null,null,null,null,null,null,null,null,null,null,null,null,null,null,null,null,null,null,null,null,null,null,null,null,null,null,null,null,null,null,null,null,null,null,null,null,null,null,null,null,null,null,null,null,null,null,null,null,null,null,null,null,null,null,null,null,null,null,null,null,null,null,null,null,null,"1.6 地盤調査方法等","〃",{"$f":"work_tower_N01_6_JIBAN_TYOUSA_1 & work_tower_N01_6_JIBAN_TYOUSA_2 & work_tower_N01_6_JIBAN_TYOUSA_3 & work_tower_N01_6_JIBAN_TYOUSA_4","v":""}]
[null,null,null,null,null,null,null,null,null,null,null,null,null,null,null,null,null,null,null,null,null,null,null,null,null,null,null,null,null,null,null,null,null,"地盤調査方法等",null,null,null,null,null,null,null,null,null,null,null,null,null,null,null,null,null,null,null,null,null,"杭長",null,null,null,null,null,null,null,null,null,null,"ｍ",null,null,null,null,null,null,null,null,null,null,null,null,null,null,null,null,null,null,null,null,null,null,null,null,null,null,null,null,null,null,null,null,null,null,null,"住戸専用部",null,null,null,null,null,null,null,null,null,null,null,null,null,null,null,null,null,null,null,null,null,null,null,null,null,null,null,null,null,null,null,null,null,null,null,null,null,null,null,null,null,null,null,null,null,null,null,null,null,null,null,null,null,null,null,null,null,null,null,null,null,null,null,null,null,null,null,null,null,null,null,null,null,null,null,null,null,null,null,null,null,null,null,null,null,null,null,null,null,null,null,null,null,null,null,null,null,null,null,null,null,null,null,null,null,null,null,null,null,null,null,null,null,null,null,null,null,null,null,null,null,null,null,null,null,null,null,null,null,null,null,null,null,null,"1.7 杭径","〃",{"$f":"IF(work_tower_N01_7_KUI_KEI_max <> \"\", work_tower_N01_7_KUI_KEI_max, \"\") & IF(work_tower_N01_7_KUI_KEI_max <> \"\", IF(work_tower_N01_7_KUI_KEI_max <> \"\", \" \", \"\"), \"\") & IF(work_tower_N01_7_KUI_KEI_min <> \"\", work_tower_N01_7_KUI_KEI_min, \"\")","v":""},{"$f":"IF(work_tower_N01_7_KUI_KEI_max <> \"\", \"最大値：\" & work_tower_N01_7_KUI_KEI_max, \"\") & IF(work_tower_N01_7_KUI_KEI_max <> \"\", IF(work_tower_N01_7_KUI_KEI_max <> \"\", \" \", \"\"), \"\") & IF(work_tower_N01_7_KUI_KEI_min <> \"\", \"最小値：\" & work_tower_N01_7_KUI_KEI_min, \"\")","v":""}]
[null,null,null,null,null,null,null,null,null,null,null,null,null,null,null,null,null,null,null,null,null,null,null,null,null,null,null,null,null,null,null,null,null,null,null,null,null,null,null,null,null,null,null,null,null,null,null,null,null,null,null,null,null,null,null,null,null,null,null,null,null,null,null,null,null,null,null,null,null,null,null,null,null,null,null,null,null,null,null,null,null,null,null,null,null,null,null,null,null,null,null,null,null,null,null,null,null,null,null,null,null,null,"その他",null,null,null,null,null,null,null,null,null,null,null,null,null,null,null,null,null,null,null,null,null,null,null,null,null,null,null,null,null,null,null,null,null,null,null,null,null,null,null,null,null,null,null,null,null,null,null,null,null,null,null,null,null,null,null,null,null,null,null,null,null,null,null,null,null,null,null,null,null,null,null,null,null,null,null,null,null,null,null,null,null,null,null,null,null,null,null,null,null,null,null,null,null,null,null,null,null,null,null,null,null,null,null,null,null,null,null,null,null,null,null,null,null,null,null,null,null,null,null,null,null,null,null,null,null,null,null,null,null,null,null,null,null,null,"1.7 杭長","〃",{"$f":"IF(work_tower_N01_7_KUI_TYOU_max <> \"\", work_tower_N01_7_KUI_TYOU_max, \"\") & IF(work_tower_N01_7_KUI_TYOU_max <> \"\", IF(work_tower_N01_7_KUI_TYOU_min <> \"\", \" \", \"\"), \"\") & IF(work_tower_N01_7_KUI_TYOU_min <> \"\", work_tower_N01_7_KUI_TYOU_min, \"\")","v":""},{"$f":"IF(work_tower_N01_7_KUI_TYOU_max <> \"\", \"最大値：\" & work_tower_N01_7_KUI_TYOU_max, \"\") & IF(work_tower_N01_7_KUI_TYOU_max <> \"\", IF(work_tower_N01_7_KUI_TYOU_min <> \"\", \" \", \"\"), \"\") & IF(work_tower_N01_7_KUI_TYOU_min <> \"\", \"最小値：\" & work_tower_N01_7_KUI_TYOU_min, \"\")","v":""}]
[null,null,null,null,null,null,null,null,null,null,null,null,null,null,null,null,null,null,null,null,null,null,null,null,null,null,null,null,null,null,null,null,null,"地盤改良方法"]
[]
[null,null,null,null,null,null,null,null,null,null,null,null,null,null,null,null,null,null,null,null,null,null,null,null,null,null,null,null,null,null,null,null,null,null,null,null,null,null,null,null,null,null,null,null,null,null,null,null,null,null,null,null,null,null,null,null,null,null,null,null,null,"※その２：メゾネットの場合",null,null,null,null,null,null,null,null,null,null,null,null,null,null,null,null,null,null,null,null,null,null,null,null,null,null,null,null,null,null,null,null,null,null,null,null,null,null,null,null,null,null,null,null,null,null,"※方位別開口比の値が100の場合には、[%以上]を[%]と読み替える。",null,null,null,null,null,null,null,null,null,null,null,null,null,null,null,null,null,null,"相当スラブ厚：0:該当なし　a:27cm以上　b:20cm以上　c:15cm以上　d:11cm以上　e:その他"]
["（住戸部分）",null,null,null,null,null,null,null,null,null,null,null,null,null,null,null,null,null,null,null,null,null,null,null,null,null,null,null,null,null,null,null,null,null,null,null,null,null,null,null,null,null,null,null,null,null,null,null,null,null,null,null,null,null,null,null,null,null,null,null,null,null,null,null,null,null,null,null,null,null,null,null,null,null,null,null,null,null,null,null,null,null,null,null,null,null,null,null,null,null,null,null,null,null,null,null,null,null,null,null,null,null,null,null,null,null,null,null,"※方位別開口比の値が[-]の場合には、[0%]と読み替える。",null,null,null,null,null,null,null,null,null,null,null,null,null,null,null,null,null,null,"レベル低減量：0:該当なし　a:30db　b:25db　c:20db　d:15db　e:その他"]
["通し番号","住戸番号　新",null,"住戸番号",null,"階",null,"タイプ",null,"居室の床面積",null,"専有部分の面積",null,"バルコニー等専用使用部分の面積",null,"合計床面積",null,"住戸への経路（共用階段）","住戸への経路（共用廊下）","住戸への経路（エレベーター）","界壁","界床",null,null,"2.火災時の安全",null,null,null,null,null,null,null,null,null,null,null,null,null,null,null,null,null,null,null,null,null,"4.維持管理・更新対策",null,null,null,null,null,null,null,null,null,null,null,null,null,null,null,null,null,null,null,null,null,null,null,null,null,null,null,"5.温熱",null,null,null,null,null,null,null,null,null,null,"6.空気環境",null,null,null,null,null,null,null,null,null,null,null,null,null,null,null,null,null,null,null,null,null,"7.光・視環境",null,null,null,null,null,"　8.音環境",null,null,null,null,null,null,null,null,null,null,null,null,null,null,null,null,null,null,null,null,null,null,null,null,null,null,null,null,"9.高齢",null,"10.防犯",null,null,null,null,null,null,null,null,null,null,null,null,null,null,null,null,null,null,null,null,null,"10.防犯"]
[null,null,null,null,null,null,null,null,null,null,null,null,null,null,null,null,null,null,null,null,null,null,null,null,1,2,"3.避難安全対策",null,null,null,null,null,null,null,null,null,"4.脱出対策",null,null,null,null,null,null,null,null,7,1,"4.更新対策",null,null,null,null,null,null,null,null,null,null,null,null,null,null,null,null,null,null,null,null,null,null,null,null,null,null,1,null,null,null,null,null,2,null,null,null,null,"1.ホルムアルデヒドﾞ対策",null,null,null,null,"2.換気対策",null,null,null,null,null,null,null,null,null,null,null,null,null,null,null,null,1,"2.方位別開口比",null,null,null,null,"1.重量床衝撃音対策",null,null,null,null,null,null,null,null,null,null,null,null,"2．軽量床衝撃音対策",null,null,null,null,null,null,null,null,null,null,"透過損失等級",null,null,null,null,1,2,"建物出入り口の階",null,null,null,null,null,null,null,null,null,null,"建物出入り口の以外の階",null,null,null,null,null,null,null,null,null,null,"1.開口部の侵入防止対策（３）",null,null,null,null,null,null,null,null,null,null,"1.開口部の侵入防止対策（４）"]
[null,null,null,null,null,null,null,null,null,null,null,null,null,null,null,null,null,null,null,null,null,null,null,null,"感知警報装置（自住戸）","感知警報装置（他住戸）","該当なし","排煙形式",null,null,null,null,"平面形状",null,null,"隔壁開口部等級","該当なし","直通バルコニー","隣戸バルコニー","避難器具",null,null,"その他",null,null,"界壁及び界床","維持管理（専用配管）","該当なし","（その１）",null,null,null,null,null,null,null,null,"（その２）",null,null,null,null,null,null,null,null,"間取りの変更の障害",null,"計算方法",null,null,null,"省エネルギー対策",null,"断熱等性能",null,null,null,null,null,"一次エネルギー消費量",null,null,null,null,"使用建材",null,null,"等級",null,"居室",null,null,null,null,"便所",null,null,null,"浴室",null,null,null,"台所",null,null,null,"単純開口率","北","東","南","西","真上","対策等級・相当スラブ厚の区別",null,null,null,"対策等級",null,null,null,"相当スラブ厚",null,null,null,"対策等級・レベル低減量の区別",null,null,null,"対策等級",null,null,null,"ﾚﾍﾞﾙ低減量",null,null,null,3,"4.外壁開口部",null,null,null,"高齢者等配慮(専用部分)","高齢者等配慮(共用部分)","住戸位置",null,null,"a",null,"b",null,"b",null,"c",null,"住戸位置",null,null,"a",null,"b(bⅰ)",null,"bⅱ",null,"c",null,"住戸位置",null,null,"a",null,"b(bⅰ)",null,"bⅱ",null,"c",null,"住戸位置",null,null,"a",null,"b(bⅰ)",null,"bⅱ",null,"c",null,"2-1選択","2-2選択","2-3選択","2-4選択","2-7選択","4-1選択","4-4選択","5-1選択","5-2選択","6-1選択","6-2選択","7-1選択","7-2選択","8-1選択","対策等級",null,null,null,"相当スラブ厚",null,null,null,"8-2選択","対策等級",null,null,null,"ﾚﾍﾞﾙ低減量",null,null,null,"8-3選択","8-4選択","9-1選択","9-2選択","10-1選択","前処理（出入り口","前処理（開口部（共用部等）","前処理（開口部（バルコニー等）","前処理（その他開口部",null,null,null,null,null,null,null,null,null,"※通常非表示読込項目"]
[null,null,null,null,null,null,null,null,null,null,null,null,null,null,null,null,null,null,null,null,null,null,null,null,null,null,null,null,null,null,null,null,null,null,null,null,null,null,null,null,"種類",null,null,"種類",null,null,null,null,"地上･地下･その他","階","躯体天井高",null,"最も低い部分",null,null,null,null,"地上･地下･その他","階","躯体天井高",null,"最も低い部分",null,null,null,null,null,null,null,null,null,null,null,null,null,null,"外皮平均熱貫流率",null,"冷房期の平均日射熱取得率",null,null,null,"床面積当たりの設計一次エネルギー消費量",null,null,"製材等","特定建材","その他","内装材","天井裏等","機械換気","その他","その他内容",null,null,"該当なし","機械換気設備","換気のできる窓","なし","該当なし","機械換気設備","換気のできる窓","なし","該当なし","機械換気設備","換気のできる窓","なし",null,null,null,null,null,null,null,null,null,null,"上階",null,"下階",null,"上階",null,"下階",null,null,null,null,null,"上階",null,"下階",null,"上階",null,"下階",null,"界壁","北","東","南","西",null,null,"建物出入口の存する階","地下･地上･屋上","階数","出入口",null,"開口部（共用部等）",null,"開口部（バルコニー等）",null,"その他開口部",null,"建物出入口の存する階","地下･地上･屋上","階数","出入口",null,"開口部（共用部等）",null,"開口部（バルコニー等）",null,"その他開口部",null,"建物出入口の存する階","地下･地上･屋上","階数","出入口",null,"開口部（共用部等）",null,"開口部（バルコニー等）",null,"その他開口部",null,"建物出入口の存する階","地下･地上･屋上","階数","出入口",null,"開口部（共用部等）",null,"開口部（バルコニー等）",null,"その他開口部",null,null,null,null,null,null,null,null,null,null,null,null,null,null,null,"上階",null,"下階",null,"上階",null,"下階",null,null,"上階",null,"下階",null,"上階",null,"下階",null,null,null,null,null,null,null,null,null,null,null,null,null,null,null,null,null,null,null,"住棟の選択・非選択のチェックボックスの作成場所（必須のチェックボックスも含む）"]
[null,null,null,null,null,null,null,null,null,null,null,null,null,null,null,null,null,null,null,null,null,null,null,null,null,null,null,null,null,null,null,null,null,null,null,null,null,null,null,null,null,null,null,null,null,null,null,null,null,null,null,null,"部位",null,null,"内法高さ",null,null,null,null,null,"部位",null,null,"内法高さ",null,null,null,null,null,null,null,null,null,null,null,null,null,null,null,null,null,null,null,null,null,null,null,null,null,null,null,null,null,null,null,null,null,null,null,null,null,null,null,null,null,null,null,null,null,null,null,null,null,null,null,null,"最高","最低","最高","最低","最高","最低","最高","最低",null,null,null,null,"最高","最低","最高","最低","最高","最低","最高","最低",null,null,null,null,null,null,null,null,null,null,null,null,null,null,null,null,null,null,null,null,null,null,null,null,null,null,null,null,null,null,null,null,null,null,null,null,null,null,null,null,null,null,null,null,null,null,null,null,null,null,null,null,null,null,null,null,null,null,null,null,null,null,null,null,null,"最高","最低","最高","最低","最高","最低","最高","最低",null,"最高","最低","最高","最低","最高","最低","最高","最低",null,null,null,null,null,null,null,null,null,null,null,null,null,null,null,null,null,null,1,"1-1.",null,{"$f":"IF(CL7=\"\",\"\",1)","v":""},"2-5."]
[null,null,null,null,null,null,null,null,null,null,null,null,null,null,null,null,null,null,null,null,null,null,null,null,null,null,null,null,null,null,null,null,null,null,null,null,null,null,null,null,null,null,null,null,null,null,null,null,null,null,null,null,null,null,null,null,null,null,null,null,null,null,null,null,null,null,null,null,null,null,null,null,null,null,null,null,null,null,null,null,null,null,null,null,null,null,null,null,null,null,null,null,null,null,null,null,null,null,null,null,null,null,null,null,null,null,null,null,null,null,null,null,null,null,null,null,null,null,null,null,null,null,null,null,null,null,null,null,null,null,null,null,null,null,null,null,null,null,null,null,null,null,null,null,null,null,null,null,null,null,null,null,null,null,null,null,null,null,null,null,null,null,null,null,null,null,null,null,null,null,null,null,null,null,null,null,null,null,null,null,null,null,null,null,null,null,null,null,null,null,null,null,null,null,null,null,null,null,null,null,null,null,null,null,null,null,null,null,null,null,null,null,null,null,null,null,null,null,null,null,null,null,null,null,null,null,null,null,null,null,null,null,null,null,null,null,null,{"$f":"IF(AB8=\"\",\"\",1)","v":""},"1-2.",null,{"$f":"IF(CL8=\"\",\"\",1)","v":""},"2-6."]
[null,null,null,null,null,null,null,null,null,null,null,null,null,null,null,null,null,null,null,null,null,null,null,null,null,null,null,null,null,null,null,null,null,null,null,null,null,null,null,null,null,null,null,null,null,null,null,null,null,null,null,null,null,null,null,null,null,null,null,null,null,null,null,null,null,null,null,null,null,null,null,null,null,null,null,null,null,null,null,null,null,null,null,null,null,null,null,null,null,null,null,null,null,null,null,null,null,null,null,null,null,null,null,null,null,null,null,null,null,null,null,null,null,null,null,null,null,null,null,null,null,null,null,null,null,null,null,null,null,null,null,null,null,null,null,null,null,null,null,null,null,null,null,null,null,null,null,null,null,null,null,null,null,null,null,null,null,null,null,null,null,null,null,null,null,null,null,null,null,null,null,null,null,null,null,null,null,null,null,null,null,null,null,null,null,null,null,null,null,null,null,null,null,null,null,null,null,null,null,null,null,null,null,null,null,null,null,null,null,null,null,null,null,null,null,null,null,null,null,null,null,null,null,null,null,null,null,null,null,null,null,null,null,null,null,null,null,1,"1-3."]
[null,null,null,null,null,null,null,null,null,null,null,null,null,null,null,null,null,null,null,null,null,null,null,null,null,null,null,null,null,null,null,null,null,null,null,null,null,null,null,null,null,null,null,null,null,null,null,null,null,null,null,null,null,null,null,null,null,null,null,null,null,null,null,null,null,null,null,null,null,null,null,null,null,null,null,null,null,null,null,null,null,null,null,null,null,null,null,null,null,null,null,null,null,null,null,null,null,null,null,null,null,null,null,null,null,null,null,null,null,null,null,null,null,null,null,null,null,null,null,null,null,null,null,null,null,null,null,null,null,null,null,null,null,null,null,null,null,null,null,null,null,null,null,null,null,null,null,null,null,null,null,null,null,null,null,null,null,null,null,null,null,null,null,null,null,null,null,null,null,null,null,null,null,null,null,null,null,null,null,null,null,null,null,null,null,null,null,null,null,null,null,null,null,null,null,null,null,null,null,null,null,null,null,null,null,null,null,null,null,null,null,null,null,null,null,null,null,null,null,null,null,null,null,null,null,null,null,null,null,null,null,null,null,null,null,null,null,{"$f":"IF(AB10=\"\",\"\",1)","v":""},"1-4.",null,1,"3-1."]
[null,null,null,null,null,null,null,null,null,null,null,null,null,null,null,null,null,null,null,null,null,null,null,null,null,null,null,null,null,null,null,null,null,null,null,null,null,null,null,null,null,null,null,null,null,null,null,null,null,null,null,null,null,null,null,null,null,null,null,null,null,null,null,null,null,null,null,null,null,null,null,null,null,null,null,null,null,null,null,null,null,null,null,null,null,null,null,null,null,null,null,null,null,null,null,null,null,null,null,null,null,null,null,null,null,null,null,null,null,null,null,null,null,null,null,null,null,null,null,null,null,null,null,null,null,null,null,null,null,null,null,null,null,null,null,null,null,null,null,null,null,null,null,null,null,null,null,null,null,null,null,null,null,null,null,null,null,null,null,null,null,null,null,null,null,null,null,null,null,null,null,null,null,null,null,null,null,null,null,null,null,null,null,null,null,null,null,null,null,null,null,null,null,null,null,null,null,null,null,null,null,null,null,null,null,null,null,null,null,null,null,null,null,null,null,null,null,null,null,null,null,null,null,null,null,null,null,null,null,null,null,null,null,null,null,null,null,{"$f":"IF(AB11=\"\",\"\",1)","v":""},"1-5."]
[null,null,null,null,null,null,null,null,null,null,null,null,null,null,null,null,null,null,null,null,null,null,null,null,null,null,null,null,null,null,null,null,null,null,null,null,null,null,null,null,null,null,null,null,null,null,null,null,null,null,null,null,null,null,null,null,null,null,null,null,null,null,null,null,null,null,null,null,null,null,null,null,null,null,null,null,null,null,null,null,null,null,null,null,null,null,null,null,null,null,null,null,null,null,null,null,null,null,null,null,null,null,null,null,null,null,null,null,null,null,null,null,null,null,null,null,null,null,null,null,null,null,null,null,null,null,null,null,null,null,null,null,null,null,null,null,null,null,null,null,null,null,null,null,null,null,null,null,null,null,null,null,null,null,null,null,null,null,null,null,null,null,null,null,null,null,null,null,null,null,null,null,null,null,null,null,null,null,null,null,null,null,null,null,null,null,null,null,null,null,null,null,null,null,null,null,null,null,null,null,null,null,null,null,null,null,null,null,null,null,null,null,null,null,null,null,null,null,null,null,null,null,null,null,null,null,null,null,null,null,null,null,null,null,null,null,null,1,"1-6.",null,{"$f":"IF(DD7=\"\",\"\",1)","v":""},"4-2."]
[null,null,null,null,null,null,null,null,null,null,null,null,null,null,null,null,null,null,null,null,null,null,null,null,null,null,null,null,null,null,null,null,null,null,null,null,null,null,null,null,null,null,null,null,null,null,null,null,null,null,null,null,null,null,null,null,null,null,null,null,null,null,null,null,null,null,null,null,null,null,null,null,null,null,null,null,null,null,null,null,null,null,null,null,null,null,null,null,null,null,null,null,null,null,null,null,null,null,null,null,null,null,null,null,null,null,null,null,null,null,null,null,null,null,null,null,null,null,null,null,null,null,null,null,null,null,null,null,null,null,null,null,null,null,null,null,null,null,null,null,null,null,null,null,null,null,null,null,null,null,null,null,null,null,null,null,null,null,null,null,null,null,null,null,null,null,null,null,null,null,null,null,null,null,null,null,null,null,null,null,null,null,null,null,null,null,null,null,null,null,null,null,null,null,null,null,null,null,null,null,null,null,null,null,null,null,null,null,null,null,null,null,null,null,null,null,null,null,null,null,null,null,null,null,null,null,null,null,null,null,null,null,null,null,null,null,null,1,"1-7.",null,{"$f":"IF(DD8=\"\",\"\",1)","v":""},"4-3."]
[null,null,null,null,null,null,null,null,null,null,null,null,null,null,null,null,null,null,null,null,null,null,null,null,null,null,null,null,null,null,null,null,null,null,null,null,null,null,null,null,null,null,null,null,null,null,null,null,null,null,null,null,null,null,null,null,null,null,null,null,null,null,null,null,null,null,null,null,null,null,null,null,null,null,null,null,null,null,null,null,null,null,null,null,null,null,null,null,null,null,null,null,null,null,null,null,null,null,null,null,null,null,null,null,null,null,null,null,null,null,null,null,null,null,null,null,null,null,null,null,null,"[0a|e]","[0a|e]","[0a|e]","[0a|e]",null,null,null,null,null,null,null,null,"[0a|e]","[0a|e]","[0a|e]","[0a|e]",null,null,null,null,null,null,null,null,null,null,null,null,null,null,null,null,null,null,null,null,null,null,null,null,null,null,null,null,null,null,null,null,null,null,null,null,null,null,null,null,null,null,null,null,null,null,null,null,null,null,null,null,null,null,null,null,null,null,null,null,null,null,null,null,null,null,null,null,null,"[0a|e]","[0a|e]","[0a|e]","[0a|e]",null,null,null,null,null,"[0a|e]","[0a|e]","[0a|e]","[0a|e]"]
[null,null,null,null,null,null,null,null,null,null,null,null,null,null,null,null,null,null,null,null,null,null,null,null,"[1|4]","[0|4]",null,null,null,null,null,null,null,null,null,"[1|3]",null,null,null,null,null,null,null,null,null,"[0|4]","[0|3]",null,null,null,null,null,null,null,null,null,null,null,null,null,null,null,null,null,null,null,null,null,null,null,null,null,"地域区分","[1|4]","地域区分","[1|7]",null,null,null,null,"地域区分","[1 4 5 6]",null,null,null,null,null,null,"[0|3]","[023]",null,null,null,null,null,null,null,null,null,null,null,null,null,null,null,null,null,"％以上","％以上","％以上","％以上","％以上","％以上",null,null,null,null,"[0|5]","[0|5]","[0|5]","[0|5]",null,null,null,null,null,null,null,null,"[0|5]","[0|5]","[0|5]","[0|5]",null,null,null,null,"[0|4]","[0|3]","[0|3]","[0|3]","[0|3]","[1|5]","[0|5]",null,null,null,null,null,null,null,null,null,null,null,null,null,null,null,null,null,null,null,null,null,null,null,null,null,null,null,null,null,null,null,null,null,null,null,null,null,null,null,null,null,null,null,null,null,null,null,null,null,null,null,null,null,null,null,null,null,null,"[0|5]","[0|5]","[0|5]","[0|5]",null,null,null,null,null,"[0|5]","[0|5]","[0|5]","[0|5]"]
[]
[null,null,null,null,null,null,null,null,null,null,null,null,null,null,null,null,null,null,null,null,null,null,null,null,null,null,null,null,null,null,null,null,null,null,null,null,null,null,null,null,null,null,null,null,null,null,null,null,null,null,null,null,null,null,null,null,null,null,null,null,null,null,null,null,null,null,null,null,null,null,null,null,null,null,null,null,"ＵＡ",null,"ηＡ",null,null,null,"MJ/㎡・年"]
[]
[{"$f":" ROW(A34) - ROW(_row) + 1","v":0},null,null,{"$f":"IF(B34=\"\",\"\",B34)","v":""},null,null,null,null,null,null,null,null,null,null,null,null,null,null,null,null,null,null,null,null,null,null,null,null,null,null,null,null,null,null,null,null,null,null,null,null,null,null,null,null,null,null,null,null,null,{"$f":"IF(GM34=1,IF(F34=\"\",\"\",F34),\"\")","v":""},null,null,null,null,null,null,null,null,null,null,null,null,null,null,null,null,null,null,null,null,null,null,null,null,null,null,null,null,null,null,null,null,null,null,null,null,null,null,null,null,null,null,null,null,null,null,null,null,null,null,null,null,null,null,null,null,null,null,null,null,null,null,null,null,null,null,null,null,null,null,null,null,null,null,null,null,null,null,null,null,null,null,null,null,null,null,null,null,null,null,null,null,null,null,null,null,{"$f":"IF(F34=\"\",\"\",F34)","v":""},null,null,null,null,null,null,null,null,null,null,{"$f":"IF(OR(IF(OR(FC34=\"\",FC34=\"無し\"),\"\",1)=1,IF(OR(FE34=\"\",FE34=\"無し\"),\"\",1)=1,IF(OR(FG34=\"\",FG34=\"無し\"),\"\",1)=1,IF(OR(FI34=\"\",FI34=\"無し\"),\"\",1)=1),IF(F34=\"\",\"\",F34),\"\")","v":""},null,null,null,null,null,null,null,null,null,null,{"$f":"IF(OR(IF(OR(FN34=\"\",FN34=\"無し\"),\"\",1)=1,IF(OR(FP34=\"\",FP34=\"無し\"),\"\",1)=1,IF(OR(FR34=\"\",FR34=\"無し\"),\"\",1)=1,IF(OR(FT34=\"\",FT34=\"無し\"),\"\",1)=1),IF(F34=\"\",\"\",F34),\"\")","v":""},null,null,null,null,null,null,null,null,null,null,{"$f":"IF(OR(IF(OR(FY34=\"\",FY34=\"無し\"),\"\",1)=1,IF(OR(GA34=\"\",GA34=\"無し\"),\"\",1)=1,IF(OR(GC34=\"\",GC34=\"無し\"),\"\",1)=1,IF(OR(GE34=\"\",GE34=\"無し\"),\"\",1)=1),IF(F34=\"\",\"\",F34),\"\")","v":""},null,null,null,null,null,null,null,null,{"$f":"IF(Y34<>\"\",1,\"\")","v":""},{"$f":"IF(Z34<>\"\",1,\"\")","v":""},{"$f":"IF(OR(AA34=\"○\",AB34<>\"\",AG34<>\"\",AJ34<>\"\"),1,\"\")","v":""},{"$f":"IF(OR(AK34=\"○\",AL34=\"○\",AM34=\"○\",AN34=\"○\",AQ34=\"○\"),1,\"\")","v":""},{"$f":"IF(AT34<>\"\",1,\"\")","v":""},1,{"$f":"IF(OR(AV34=\"○\",AY34<>\"\",BA34=\"はり\",BA34=\"傾斜屋根\",BA34=\"その他\",BD34<>\"\"),1,\"\")","v":""},1,1,{"$f":"IF(OR(CH34=\"○\",CI34=\"○\",CJ34=\"○\",CK34=1,CK34=2,CK34=3,CL34=1,CL34=2,CL34=3),1,\"\")","v":""},{"$f":"IF(OR(CM34=\"○\",CN34=\"○\",CS34=\"○\",CT34=\"○\",CW34=\"○\",CX34=\"○\",DA34=\"○\",DB34=\"○\"),1,\"\")","v":""},{"$f":"IF(DD34=\"\",\"\",1)","v":""},{"$f":"IF(OR(DE34<>\"\",DF34<>\"\",DG34<>\"\",DH34<>\"\",DI34<>\"\"),1,\"\")","v":""},{"$f":"IF(OR(GU34=1,GV34=1,GW34=1,GX34=1,GY34=1,GZ34=1,HA34=1,HB34=1),\"○\",\"\")","v":""},{"$f":"IF(OR(DN34=\"\",DN34=0),\"\",1)","v":""},{"$f":"IF(OR(DO34=\"\",DO34=0),\"\",1)","v":""},{"$f":"IF(OR(DP34=\"\",DP34=0),\"\",1)","v":""},{"$f":"IF(OR(DQ34=\"\",DQ34=0),\"\",1)","v":""},{"$f":"IF(OR(DR34=\"\",DR34=0),\"\",1)","v":""},{"$f":"IF(OR(DS34=\"\",DS34=0),\"\",1)","v":""},{"$f":"IF(OR(DT34=\"\",DT34=0),\"\",1)","v":""},{"$f":"IF(OR(DU34=\"\",DU34=0),\"\",1)","v":""},{"$f":"IF(OR(HD34=1,HE34=1,HF34=1,HG34=1,HI34=1,HH34=1,HJ34=1,HK34=1),\"○\",\"\")","v":""},{"$f":"IF(OR(DZ34=\"\",DZ34=0),\"\",1)","v":""},{"$f":"IF(OR(EA34=\"\",EA34=0),\"\",1)","v":""},{"$f":"IF(OR(EB34=\"\",EB34=0),\"\",1)","v":""},{"$f":"IF(OR(EC34=\"\",EC34=0),\"\",1)","v":""},{"$f":"IF(OR(ED34=\"\",ED34=0),\"\",1)","v":""},{"$f":"IF(OR(EE34=\"\",EE34=0),\"\",1)","v":""},{"$f":"IF(OR(EF34=\"\",EF34=0),\"\",1)","v":""},{"$f":"IF(OR(EG34=\"\",EG34=0),\"\",1)","v":""},{"$f":"IF(OR(EH34=4,EH34=3,EH34=2,EH34=1),\"○\",\"\")","v":""},{"$f":"IF(OR(EI34=1,EI34=2,EI34=3),\"○\",IF(OR(EJ34=1,EJ34=2,EJ34=3),\"○\",IF(OR(EK34=1,EK34=2,EK34=3),\"○\",IF(OR(EL34=1,EL34=2,EL34=3),\"○\",\"\"))))","v":""},{"$f":"IF(EM34=\"\",\"\",1)","v":""},{"$f":"IF(OR(EN34=\"\"),\"\",1)","v":""},{"$f":"IF(OR(HQ34=1,HR34=1,HS34=1,HT34=1),1,\"\")","v":""},{"$f":"IF(AND(OR(ER34=\"\",ER34=\"無し\"),OR(FC34=\"\",FC34=\"無し\")),\"\",1)","v":""},{"$f":"IF(AND(OR(ET34=\"\",ET34=\"無し\"),OR(FE34=\"\",FE34=\"無し\")),\"\",1)","v":""},{"$f":"IF(OR(FG34=\"\",FG34=\"無し\"),\"\",1)","v":""},{"$f":"IF(AND(OR(EX34=\"\",EX34=\"無し\"),OR(FI34=\"\",FI34=\"無し\")),\"\",1)","v":""}]
[1,"",null,null,null,null,null,null,null,null,null,null,null,null,null,null,null,null,null,null,null,null,null,null,null,null,null,null,null,null,null,null,null,null,null,null,null,null,null,null,null,null,null,null,null,null,null,null,null,null,null,null,null,null,null,null,null,null,null,null,null,null,null,null,null,null,null,null,null,null,null,null,null,null,null,null,null,null,null,null,null,null,null,null,null,null,null,null,null,null,null,null,null,null,null,null,null,null,null,null,null,null,null,null,null,null,null,null,null,null,null,null,null,null,null,null,null,null,null,null,null,null,null,null,null,null,null,null,null,null,null,null,null,null,null,null,null,null,null,null,null,null,null,null,null,null,"",null,null,null,null,null,null,null,null,null,null,"",null,null,null,null,null,null,null,null,null,null,"",null,null,null,null,null,null,null,null,null,null,"",null,null,null,null,null,null,null,null,{"$f":"IF(Y35<>\"\",1,\"\")","v":""},"",{"$f":"IF(OR(AA35=\"○\",AB35<>\"\",AG35<>\"\",AJ35<>\"\"),1,\"\")","v":""},{"$f":"IF(OR(AK35=\"○\",AL35=\"○\",AM35=\"○\",AN35=\"○\",AQ35=\"○\"),1,\"\")","v":""},{"$f":"IF(AT35<>\"\",1,\"\")","v":""},1,{"$f":"IF(OR(AV35=\"○\",AY35<>\"\",BA35=\"はり\",BA35=\"傾斜屋根\",BA35=\"その他\",BD35<>\"\"),1,\"\")","v":""},1,1,{"$f":"IF(OR(CH35=\"○\",CI35=\"○\",CJ35=\"○\",CK35=1,CK35=2,CK35=3,CL35=1,CL35=2,CL35=3),1,\"\")","v":""},{"$f":"IF(OR(CM35=\"○\",CN35=\"○\",CS35=\"○\",CT35=\"○\",CW35=\"○\",CX35=\"○\",DA35=\"○\",DB35=\"○\"),1,\"\")","v":""},{"$f":"IF(DD35=\"\",\"\",1)","v":""},{"$f":"IF(OR(DE35<>\"\",DF35<>\"\",DG35<>\"\",DH35<>\"\",DI35<>\"\"),1,\"\")","v":""},null,{"$f":"IF(OR(DN35=\"\",DN35=0),\"\",1)","v":""},"","","","","","","",null,{"$f":"IF(OR(DZ35=\"\",DZ35=0),\"\",1)","v":""},{"$f":"IF(OR(EA35=\"\",EA35=0),\"\",1)","v":""},"","","","","","",null,{"$f":"IF(OR(EI35=1,EI35=2,EI35=3),\"○\",IF(OR(EJ35=1,EJ35=2,EJ35=3),\"○\",IF(OR(EK35=1,EK35=2,EK35=3),\"○\",IF(OR(EL35=1,EL35=2,EL35=3),\"○\",\"\"))))","v":""},{"$f":"IF(EM35=\"\",\"\",1)","v":""},{"$f":"IF(OR(EN35=\"\"),\"\",1)","v":""},{"$f":"IF(OR(HQ35=1,HR35=1,HS35=1,HT35=1),1,\"\")","v":""},{"$f":"IF(AND(OR(ER35=\"\",ER35=\"無し\"),OR(FC35=\"\",FC35=\"無し\")),\"\",1)","v":""},{"$f":"IF(AND(OR(ET35=\"\",ET35=\"無し\"),OR(FE35=\"\",FE35=\"無し\")),\"\",1)","v":""},{"$f":"IF(OR(FG35=\"\",FG35=\"無し\"),\"\",1)","v":""},{"$f":"IF(AND(OR(EX35=\"\",EX35=\"無し\"),OR(FI35=\"\",FI35=\"無し\")),\"\",1)","v":""}]

{"sheet":"マスターシート","index":2,"n_rows":19,"n_cols":37,"rows_kept":19,"cut":false,"hidden":true,"merged":[]}
[]
[null,"チェックＢＯＸ","免震構造物","共用排水","地盤調査方法","直接基礎_構造方法","直接基礎_形式","杭種","選択","選択○×","界床","避難器具種類","躯体天井","異なる天井","変更障害","地域区分","開口部住戸位置","出入口","排煙形式","平面形状","等級0_2","等級0_3","等級0_4","等級0_5",null,"等級1_2","等級1_3","等級1_4","等級1_5","等級_320","等級1_8","スラブ厚","温熱環境に関すること","等級5_1","等級5_2","重量床衝撃音対策","軽量床衝撃音対策"]
[null,"□"]
[null,"■","免震建築物","共用廊下に面する共用部分","スクリューウエイト貫入試験","鉄筋コンクリート造","べた基礎","支持杭","○","○","なし","避難はしご","地上","該当なし","なし","Ⅰ","地下","有効","a.開放型廊下","a.２方向避難",2,3,4,5,null,2,3,5,5,3,8,0,"熱損失係数",7,6,"対策等級","対策等級"]
[null,null,"その他","外壁面、吹き抜け等の住戸外周部","標準貫入試験","直接基礎","独立基礎","摩擦杭",null,"×","上階","滑り棒","地下","はり","壁","Ⅱ","地上","シャッター","b.自然排煙","b.直通階段",1,2,3,4,null,1,2,4,4,2,7,"a","熱貫流率",6,5,"相当スラブ厚","レベル低減量"]
[null,null,null,"バルコニー","平板載荷試験","SB工法","布基礎",null,null,null,"下階","避難ロープ","その他","傾斜屋根","柱","Ⅲ","屋上","その他","c.機械排煙(一般)","c.その他",0,1,2,3,null,null,1,3,3,0,6,"b",null,5,4]
[null,null,null,"住戸専用部","表面波探査法 ",null,null,null,null,null,"上階及び下階","避難用タラップ",null,"その他","壁柱","Ⅳ","中間階","無し","d.機械排煙(加圧式)",null,null,0,1,2,null,null,null,2,2,null,5,"c",null,4,1]
[null,null,null,"その他","スウェーデン式サウンディング試験",null,null,null,null,null,null,"滑り台",null,null,null,"Ⅴ","その他",null,"e.その他",null,null,null,0,1,null,null,null,1,1,null,4,"d",null,3,null,"ｲ：対策等級","ｲ：対策等級"]
[null,null,null,null,null,null,null,null,null,null,null,"緩降機",null,null,null,"Ⅵ",null,null,null,null,null,null,null,0,null,null,null,null,null,null,3,"e",null,2,null,"ﾛ：相当スラブ厚","ﾛ：レベル低減量"]
[null,null,null,null,null,null,null,null,null,null,null,"避難橋",null,null,null,null,null,null,null,null,null,null,null,null,null,null,null,null,null,null,2,null,null,1]
[null,null,null,null,null,null,null,null,null,null,null,"救助袋",null,null,null,null,null,null,null,null,null,null,null,null,null,null,null,null,null,null,1]
[]
["自己評価書で不要になって移動したセル名："]
[]
["work_tower_N01_6_JIBAN_TYOUSA_2"]
[]
["work_tower_N01_6_JIBAN_TYOUSA_3"]
[]
["work_tower_N01_6_JIBAN_TYOUSA_4"]